fUST/lending_fUST_20250405
["ID","MTS","AMOUNT","RATE_DAILY","PERIOD"]
[357179037,1743862251779,-500.0,0.00021643,2]
[357179038,1743862251788,-837.51,0.00021643,2]
[357179039,1743862251797,-500.0,0.00021643,2]
[357179040,1743862251806,-614.84,0.00021643,2]
[357179041,1743862251815,-2930.82,0.00021643,2]
[357179042,1743862251824,-500.0,0.00021643,2]
[357179043,1743862251833,-500.0,0.00021643,2]
[357179044,1743862251843,-500.0,0.00021643,2]
[357179045,1743862251852,-500.0,0.00021643,2]
[357179046,1743862251861,-712.42,0.00021643,2]
[357179047,1743862251871,-500.0,0.00021643,2]
[357179048,1743862251881,-500.0,0.00021643,2]
[357179049,1743862251891,-500.0,0.00021643,2]
[357179050,1743862251901,-500.0,0.00021643,2]
[357179051,1743862251911,-500.0,0.00021643,2]
[357179052,1743862251920,-794.97,0.00021643,2]
[357179053,1743862251930,-500.0,0.00021647,2]
[357179054,1743862251939,-500.0,0.00021667,2]
[357179055,1743862251948,-587.0,0.00021788,2]
[357179056,1743862251958,-500.0,0.00021917,2]
[357179057,1743862251968,-500.0,0.00021917,2]
[357179058,1743862251978,-500.0,0.00021917,2]
[357179059,1743862251987,-837.51,0.00021917,2]
[357179060,1743862251997,-500.0,0.00021917,2]
[357179061,1743862252006,-2930.82,0.00021917,2]
[357179062,1743862252016,-500.0,0.00021917,2]
[357179063,1743862252026,-381.83469434,0.00021917,2]
[357179064,1743862252360,-118.16530566,0.00021917,2]
[357179065,1743862252370,-500.0,0.00021917,2]
[357179066,1743862252379,-500.0,0.00021917,2]
[357179067,1743862252390,-712.42,0.00021917,2]
[357179068,1743862252399,-500.0,0.00021917,2]
[357179069,1743862252409,-500.0,0.00021917,2]
[357179070,1743862252418,-500.0,0.00021917,2]
[357179071,1743862252428,-500.0,0.00021917,2]
[357179072,1743862252437,-500.0,0.00021917,2]
[357179073,1743862252446,-794.97,0.00021917,2]
[357179074,1743862252455,-593.94511777,0.00021969,3]
[357179075,1743862252468,-4823.78925003,0.00021969,3]
[357179076,1743862252478,-284.67478623,0.00022053,2]
[357179077,1743862776187,250.03,0.00025,120]
[357179096,1743863286869,238.03,0.00010959,2]
[357179097,1743863297451,198.36,0.00010959,2]
[357179098,1743863308041,165.3,0.00010959,2]
[357179103,1743863318637,2588.1,0.00010959,2]
[357179105,1743863329170,2156.75,0.00010959,2]
[357179106,1743863339889,1797.29,0.00010959,2]
[357179110,1743863350272,1497.74,0.00010959,2]
[357179111,1743863360801,1248.12,0.00010959,2]
[357179112,1743863371384,1040.1,0.00010959,2]
[357179113,1743863381975,866.75,0.00010959,2]
[357179114,1743863392595,1194.56,0.00010959,2]
[357179115,1743863403197,995.47,0.00010959,2]
[357179116,1743863413741,829.56,0.00010959,2]
[357179117,1743863424689,691.3,0.00010959,2]
[357179124,1743863432603,-571.78738351,0.000149,2]
[357179125,1743863432615,-300.0,0.00014999,2]
[357179126,1743863432624,-300.0,0.00014999,2]
[357179127,1743863432634,-4326.86628745,0.00015,2]
[357179128,1743863432690,-11673.13371255,0.00015,2]
[357179129,1743863432700,-461.90863787,0.0001525,2]
[357179130,1743863432714,-7649.68909344,0.00016,2]
[357179131,1743863432724,-420.0,0.00016416,2]
[357179132,1743863432736,-420.0,0.00016416,2]
[357179133,1743863432745,-28879.59744264,0.00017,2]
[357179134,1743863432755,-1666.18067361,0.000175,2]
[357179135,1743863432764,-2052.09338523,0.000176,2]
[357179136,1743863432774,-1395.57699216,0.00017873,2]
[357179138,1743863432783,-13600.86012501,0.00017884,2]
[357179140,1743863435180,576.08,0.00010959,2]
[357179159,1743863438454,-1547.00676996,0.00017884,2]
[357179167,1743863440790,-1045.42938353,0.00017884,2]
[357179168,1743863440810,-2218.15027819,0.00017884,2]
[357179184,1743863443597,-6042.18561891,0.00017884,2]
[357179185,1743863443611,-587.0,0.00017966,2]
[357179186,1743863443622,-50000.0,0.00017972,2]
[357179187,1743863443633,-500.0,0.00017972,2]
[357179188,1743863443645,-500.0,0.00017972,2]
[357179189,1743863443658,-500.0,0.00017972,2]
[357179190,1743863443670,-500.0,0.00017972,2]
[357179191,1743863443682,-500.0,0.00017972,2]
[357179192,1743863443695,-500.0,0.00017972,2]
[357179194,1743863443706,-500.0,0.00017972,2]
[357179196,1743863443717,-500.0,0.00017972,2]
[357179198,1743863443728,-500.0,0.00017972,2]
[357179200,1743863443739,-500.0,0.00017972,2]
[357179203,1743863443750,-500.0,0.00017972,2]
[357179205,1743863443762,-500.0,0.00017972,2]
[357179207,1743863443773,-500.0,0.00017972,2]
[357179209,1743863443784,-500.0,0.00017972,2]
[357179211,1743863443795,-500.0,0.00017972,2]
[357179212,1743863443805,-500.0,0.00017972,2]
[357179213,1743863443817,-178.52937341,0.00017972,2]
[357179214,1743863443828,-500.0,0.00017972,2]
[357179215,1743863443839,-500.0,0.00017972,2]
[357179216,1743863443850,-500.0,0.00017972,2]
[357179217,1743863443861,-500.0,0.00017972,2]
[357179218,1743863443872,-500.0,0.00017972,2]
[357179219,1743863443883,-500.0,0.00017972,2]
[357179220,1743863443894,-296.0137244,0.00017973,2]
[357179221,1743863443904,-500.0,0.00017973,2]
[357179222,1743863443914,-185.1230573,0.00017973,2]
[357179223,1743863443924,-500.0,0.00017973,2]
[357179224,1743863443934,-160.14538954,0.00017973,2]
[357179225,1743863443945,-500.0,0.00017973,2]
[357179226,1743863443956,-502.34118889,0.00017973,2]
[357179227,1743863443966,-500.0,0.00017973,2]
[357179228,1743863443976,-479.18594647,0.00017973,2]
[357179229,1743863443987,-500.0,0.00017973,2]
[357179230,1743863443998,-500.32506724,0.00017973,2]
[357179231,1743863444009,-500.0,0.00017973,2]
[357179232,1743863444019,-255.01420452,0.00017973,2]
[357179233,1743863444031,-500.0,0.00017973,2]
[357179234,1743863444042,-500.0,0.00017973,2]
[357179235,1743863444052,-419.1636697,0.00017973,2]
[357179236,1743863444063,-500.0,0.00017973,2]
[357179237,1743863444074,-500.0,0.00017973,2]
[357179238,1743863444084,-475.64125922,0.00017973,2]
[357179239,1743863444095,-500.0,0.00017973,2]
[357179240,1743863444105,-500.0,0.00017973,2]
[357179241,1743863444116,-500.0,0.00017973,2]
[357179242,1743863444126,-500.0,0.00017973,2]
[357179243,1743863444138,-500.0,0.00017973,2]
[357179244,1743863444148,-500.0,0.00017973,2]
[357179245,1743863444159,-500.0,0.00017973,2]
[357179246,1743863444168,-500.0,0.00017973,2]
[357179247,1743863444178,-500.0,0.00017973,2]
[357179248,1743863444188,-223.72329359,0.00017973,2]
[357179249,1743863444199,-512.2147596,0.00017999,2]
[357179250,1743863444208,-144277.23294835,0.00018,2]
[357179251,1743863444218,-574.537261,0.0001805,2]
[357179252,1743863444228,-250.0,0.0001805,2]
[357179253,1743863444239,-250.0,0.00018076,2]
[357179254,1743863444249,-166.4520281,0.00018126,2]
[357179255,1743863444260,-1395.57699216,0.00018147,2]
[357179256,1743863444273,-346.7824371,0.00018202,2]
[357179257,1743863444283,-4695.36978562,0.000184,2]
[357179258,1743863444294,-4695.36978542,0.000184,2]
[357179259,1743863444305,-4695.36978542,0.000184,2]
[357179260,1743863444315,-4695.36978542,0.000184,2]
[357179261,1743863444325,-1395.57699216,0.0001842,2]
[357179262,1743863444334,-1395.57699216,0.00018694,2]
[357179263,1743863444344,-352.30744468,0.00018868,2]
[357179264,1743863444354,-1395.57699216,0.00018967,2]
[357179265,1743863444365,-151.0,0.00019067,2]
[357179266,1743863444375,-326.0595158,0.00019078,3]
[357179267,1743863444385,-370000.0,0.00019078,2]
[357179268,1743863444396,-424.48518985,0.00019173,2]
[357179269,1743863444407,-500.0,0.00019173,2]
[357179270,1743863444418,-500.0,0.00019173,2]
[357179271,1743863444428,-507.05817904,0.00019173,2]
[357179272,1743863444439,-297.33672579,0.00019173,2]
[357179273,1743863444449,-500.0,0.00019173,2]
[357179274,1743863444459,-500.54280382,0.00019173,2]
[357179275,1743863444469,-500.0,0.00019173,2]
[357179276,1743863444478,-279.49366723,0.00019173,2]
[357179277,1743863444489,-500.0,0.00019173,2]
[357179278,1743863444499,-500.0,0.00019173,2]
[357179279,1743863444510,-500.0,0.00019173,2]
[357179280,1743863444520,-500.0,0.00019173,2]
[357179281,1743863444530,-500.0,0.00019173,2]
[357179282,1743863444540,-500.50736444,0.00019173,2]
[357179283,1743863444550,-277.22786542,0.00019173,2]
[357179284,1743863444560,-500.0,0.00019173,2]
[357179285,1743863444575,-466.62729502,0.00019173,2]
[357179286,1743863444585,-500.0,0.00019173,2]
[357179287,1743863444595,-500.0,0.00019173,2]
[357179288,1743863444605,-500.0,0.00019173,2]
[357179289,1743863444616,-500.0,0.00019173,2]
[357179290,1743863444627,-508.33719497,0.00019178,2]
[357179291,1743863444637,-500.0,0.00019178,2]
[357179292,1743863444648,-173.02740122,0.00019178,2]
[357179293,1743863444659,-500.0,0.00019178,2]
[357179294,1743863444669,-518.86290203,0.00019178,2]
[357179295,1743863444680,-500.0,0.00019178,2]
[357179296,1743863444689,-500.0,0.00019178,2]
[357179297,1743863444699,-500.0,0.00019178,2]
[357179298,1743863444710,-515.38,0.00019178,2]
[357179299,1743863444719,-500.0,0.00019178,2]
[357179300,1743863444729,-500.0,0.00019178,2]
[357179301,1743863444739,-510.59231945,0.00019178,2]
[357179302,1743863444749,-500.0,0.00019178,2]
[357179303,1743863444759,-500.0,0.00019178,2]
[357179304,1743863444769,-500.0,0.00019178,2]
[357179305,1743863444779,-517.19482445,0.00019178,2]
[357179306,1743863444790,-500.0,0.00019178,2]
[357179307,1743863444800,-500.65,0.00019178,2]
[357179308,1743863444810,-500.0,0.00019178,2]
[357179309,1743863444820,-500.0,0.00019178,2]
[357179310,1743863444831,-500.0,0.00019178,2]
[357179311,1743863444841,-500.0,0.00019178,2]
[357179312,1743863444851,-500.0,0.00019178,2]
[357179313,1743863444861,-500.0,0.00019178,2]
[357179314,1743863444872,-500.0,0.00019178,2]
[357179315,1743863444882,-504.42151005,0.00019178,2]
[357179316,1743863444892,-500.0,0.00019178,2]
[357179317,1743863444903,-512.1794104,0.00019178,2]
[357179318,1743863444913,-500.0,0.00019178,2]
[357179319,1743863444923,-500.0,0.00019178,2]
[357179320,1743863444934,-500.0,0.00019178,2]
[357179321,1743863444944,-500.0,0.00019178,2]
[357179322,1743863444955,-507.74839137,0.00019178,2]
[357179323,1743863444965,-510.53825766,0.00019178,2]
[357179324,1743863444975,-500.0,0.00019178,2]
[357179325,1743863444985,-514.01280717,0.00019178,2]
[357179326,1743863444995,-514.03883418,0.00019178,2]
[357179327,1743863445004,-500.0,0.00019178,2]
[357179328,1743863445014,-514.26312299,0.00019178,2]
[357179329,1743863445024,-503.28707835,0.00019178,2]
[357179330,1743863445034,-541.97,0.00019178,2]
[357179331,1743863445044,-500.0,0.00019178,2]
[357179332,1743863445054,-500.0,0.00019178,2]
[357179333,1743863445064,-500.0,0.00019178,2]
[357179334,1743863445075,-561.07075271,0.00019178,2]
[357179335,1743863445085,-520.95958652,0.00019178,2]
[357179336,1743863445095,-500.0,0.00019178,2]
[357179337,1743863445106,-500.0,0.00019178,2]
[357179338,1743863445117,-500.0,0.00019178,2]
[357179339,1743863445127,-645.43303368,0.00019178,2]
[357179340,1743863445137,-500.0,0.00019178,2]
[357179341,1743863445148,-558.51687359,0.00019178,2]
[357179342,1743863445158,-500.0,0.00019178,2]
[357179343,1743863445169,-290.07525124,0.00019178,2]
[357179344,1743863445179,-500.0,0.00019178,2]
[357179345,1743863445369,-545.78,0.00019178,2]
[357179346,1743863445379,-510.40937497,0.00019178,2]
[357179347,1743863445389,-500.0,0.00019178,2]
[357179348,1743863445398,-430.58000869,0.00019178,2]
[357179349,1743863445408,-500.0,0.00019178,2]
[357179350,1743863445417,-500.0,0.00019178,2]
[357179351,1743863445427,-502.54006429,0.00019178,2]
[357179352,1743863445436,-509.28719742,0.00019178,2]
[357179353,1743863445446,-500.0,0.00019178,2]
[357179354,1743863445455,-500.0,0.00019178,2]
[357179355,1743863445464,-500.0,0.00019178,2]
[357179356,1743863445474,-500.0,0.00019178,2]
[357179357,1743863445483,-555.55333302,0.00019178,2]
[357179358,1743863445493,-500.0,0.00019178,2]
[357179359,1743863445503,-500.0,0.00019178,2]
[357179360,1743863445512,-500.0,0.00019178,2]
[357179361,1743863445522,-500.0,0.00019178,2]
[357179362,1743863445531,-573.74,0.00019178,2]
[357179363,1743863445541,-500.0,0.00019178,2]
[357179364,1743863445551,-500.0,0.00019178,2]
[357179365,1743863445560,-500.0,0.00019178,2]
[357179366,1743863445573,-584.79310529,0.00019178,2]
[357179367,1743863445583,-500.0,0.00019178,2]
[357179368,1743863445593,-500.0,0.00019178,2]
[357179369,1743863445602,-500.0,0.00019178,2]
[357179370,1743863445612,-264.9895154,0.00019178,2]
[357179371,1743863445622,-500.0,0.00019178,2]
[357179372,1743863445631,-500.0,0.00019178,2]
[357179373,1743863445641,-500.0,0.00019178,2]
[357179374,1743863445650,-500.0,0.00019178,2]
[357179375,1743863445662,-500.0,0.00019178,2]
[357179376,1743863445672,-500.0,0.00019178,2]
[357179377,1743863445681,-500.0,0.00019178,2]
[357179378,1743863445690,-500.0,0.00019178,2]
[357179379,1743863445700,-481.53185672,0.00019178,2]
[357179380,1743863445710,-500.0,0.00019178,2]
[357179381,1743863445719,-500.0,0.00019178,2]
[357179382,1743863445729,-504.24011394,0.00019178,2]
[357179383,1743863445739,-500.0,0.00019178,2]
[357179384,1743863445748,-500.0,0.00019178,2]
[357179385,1743863445758,-500.0,0.00019178,2]
[357179386,1743863445768,-500.0,0.00019178,2]
[357179387,1743863445777,-500.0,0.00019178,2]
[357179388,1743863445787,-229.08369839,0.00019178,2]
[357179389,1743863445796,-500.0,0.00019178,2]
[357179390,1743863445806,-500.0,0.00019178,2]
[357179391,1743863445815,-500.0,0.00019178,2]
[357179392,1743863445825,-500.0,0.00019178,2]
[357179393,1743863445834,-427.10741392,0.00019178,2]
[357179394,1743863445844,-500.0,0.00019178,2]
[357179395,1743863445853,-500.0,0.00019178,2]
[357179396,1743863445862,-506.60208603,0.00019178,2]
[357179397,1743863445871,-500.0,0.00019178,2]
[357179398,1743863445880,-500.0,0.00019178,2]
[357179399,1743863445890,-500.0,0.00019178,2]
[357179400,1743863445899,-461.28221562,0.00019178,2]
[357179401,1743863445909,-500.0,0.00019178,2]
[357179402,1743863445918,-500.0,0.00019178,2]
[357179403,1743863445927,-500.0,0.00019178,2]
[357179404,1743863445937,-500.0,0.00019178,2]
[357179405,1743863445947,-539.58,0.00019178,2]
[357179406,1743863445956,-500.0,0.00019178,2]
[357179407,1743863445965,-500.0,0.00019178,2]
[357179408,1743863445975,-500.0,0.00019178,2]
[357179410,1743863445984,-502.64083178,0.00019178,2]
[357179411,1743863445994,-500.0,0.00019178,2]
[357179413,1743863446003,-500.0,0.00019178,2]
[357179414,1743863446012,-439.31253479,0.00019178,2]
[357179415,1743863446021,-500.0,0.00019178,2]
[357179416,1743863446031,-500.0,0.00019178,2]
[357179417,1743863446039,-500.0,0.00019178,2]
[357179418,1743863446049,-500.0,0.00019178,2]
[357179419,1743863446058,-500.0,0.00019178,2]
[357179420,1743863446067,-500.0,0.00019178,2]
[357179422,1743863446077,-500.0,0.00019178,2]
[357179423,1743863446086,-500.0,0.00019178,2]
[357179424,1743863446096,-500.0,0.00019178,2]
[357179425,1743863446105,-507.91412168,0.00019178,2]
[357179426,1743863446115,-500.0,0.00019178,2]
[357179427,1743863446124,-500.0,0.00019178,2]
[357179428,1743863446134,-500.0,0.00019178,2]
[357179429,1743863446143,-500.0,0.00019178,2]
[357179430,1743863446153,-500.0,0.00019178,2]
[357179431,1743863446163,-500.0,0.00019178,2]
[357179432,1743863446172,-577.7,0.00019178,2]
[357179433,1743863446182,-500.0,0.00019178,2]
[357179434,1743863446192,-500.0,0.00019178,2]
[357179435,1743863446202,-500.0,0.00019178,2]
[357179436,1743863446212,-500.0,0.00019178,2]
[357179437,1743863446221,-500.0,0.00019178,2]
[357179438,1743863446231,-500.0,0.00019178,2]
[357179439,1743863446240,-500.0,0.00019178,2]
[357179440,1743863446250,-500.0,0.00019178,2]
[357179441,1743863446260,-500.0,0.00019178,2]
[357179442,1743863446269,-500.0,0.00019178,2]
[357179443,1743863446279,-500.0,0.00019178,2]
[357179444,1743863446288,-514.00012455,0.00019178,2]
[357179445,1743863446298,-500.0,0.00019178,2]
[357179446,1743863446308,-504.44998336,0.00019178,2]
[357179447,1743863446318,-500.0,0.00019178,2]
[357179448,1743863446327,-500.0,0.00019178,2]
[357179449,1743863446337,-533.22573824,0.00019178,2]
[357179450,1743863446347,-500.0,0.00019178,2]
[357179451,1743863446356,-500.0,0.00019178,2]
[357179452,1743863446366,-500.0,0.00019178,2]
[357179454,1743863446375,-500.0,0.00019178,2]
[357179456,1743863446385,-500.0,0.00019178,2]
[357179457,1743863446395,-500.0,0.00019178,2]
[357179458,1743863446405,-500.0,0.00019178,2]
[357179459,1743863446415,-500.0,0.00019178,2]
[357179460,1743863446424,-500.0,0.00019178,2]
[357179461,1743863446433,-500.0,0.00019178,2]
[357179462,1743863446443,-500.0,0.00019178,2]
[357179463,1743863446452,-500.0,0.00019178,2]
[357179464,1743863446463,-500.0,0.00019178,2]
[357179465,1743863446472,-500.0,0.00019178,2]
[357179466,1743863446481,-500.90697899,0.00019178,2]
[357179467,1743863446490,-500.0,0.00019178,2]
[357179468,1743863446500,-500.0,0.00019178,2]
[357179469,1743863446509,-500.0,0.00019178,2]
[357179470,1743863446518,-500.0,0.00019178,2]
[357179471,1743863446528,-500.0,0.00019178,2]
[357179472,1743863446537,-500.0,0.00019178,2]
[357179473,1743863446546,-509.71868342,0.00019178,2]
[357179474,1743863446555,-500.0,0.00019178,2]
[357179475,1743863446564,-500.0,0.00019178,2]
[357179476,1743863446577,-500.0,0.00019178,2]
[357179477,1743863446586,-500.0,0.00019178,2]
[357179479,1743863446595,-500.0,0.00019178,2]
[357179480,1743863446604,-500.0,0.00019178,2]
[357179481,1743863446615,-500.0,0.00019178,2]
[357179482,1743863446624,-500.0,0.00019178,2]
[357179483,1743863446633,-500.0,0.00019178,2]
[357179484,1743863446644,-500.0,0.00019178,2]
[357179485,1743863446654,-500.0,0.00019178,2]
[357179486,1743863446664,-500.0,0.00019178,2]
[357179487,1743863446674,-500.0,0.00019178,2]
[357179488,1743863446683,-500.0,0.00019178,2]
[357179489,1743863446692,-500.0,0.00019178,2]
[357179490,1743863446702,-374.2025567,0.00019178,2]
[357179491,1743863446711,-500.0,0.00019178,2]
[357179492,1743863446721,-500.0,0.00019178,2]
[357179493,1743863446730,-500.0,0.00019178,2]
[357179494,1743863446740,-500.0,0.00019178,2]
[357179495,1743863446749,-500.0,0.00019178,2]
[357179496,1743863446759,-500.0,0.00019178,2]
[357179497,1743863446768,-500.0,0.00019178,2]
[357179498,1743863446778,-500.0,0.00019178,2]
[357179499,1743863446787,-500.0,0.00019178,2]
[357179501,1743863446797,-508.44198049,0.00019178,2]
[357179502,1743863446806,-500.0,0.00019178,2]
[357179503,1743863446815,-513.83406054,0.00019178,2]
[357179504,1743863446824,-500.0,0.00019178,2]
[357179505,1743863446834,-500.0,0.00019178,2]
[357179506,1743863446843,-500.0,0.00019178,2]
[357179507,1743863446852,-500.0,0.00019178,2]
[357179508,1743863446862,-518.20173627,0.00019178,2]
[357179509,1743863446871,-631.08,0.00019178,2]
[357179510,1743863446881,-500.0,0.00019178,2]
[357179511,1743863446891,-500.0,0.00019178,2]
[357179512,1743863446900,-500.0,0.00019178,2]
[357179513,1743863446909,-500.0,0.00019178,2]
[357179514,1743863446919,-500.0,0.00019178,2]
[357179515,1743863446929,-500.0,0.00019178,2]
[357179516,1743863446939,-500.0,0.00019178,2]
[357179517,1743863446948,-500.0,0.00019178,2]
[357179518,1743863446957,-500.0,0.00019178,2]
[357179519,1743863446967,-509.02102622,0.00019178,2]
[357179520,1743863446977,-500.0,0.00019178,2]
[357179521,1743863446987,-500.0,0.00019178,2]
[357179522,1743863446996,-500.0,0.00019178,2]
[357179523,1743863447006,-500.0,0.00019178,2]
[357179524,1743863447016,-500.0,0.00019178,2]
[357179525,1743863447025,-500.0,0.00019178,2]
[357179526,1743863447035,-500.0,0.00019178,2]
[357179527,1743863447045,-500.0,0.00019178,2]
[357179528,1743863447054,-326.92,0.00019178,2]
[357179529,1743863447063,-500.0,0.00019178,2]
[357179530,1743863447073,-500.0,0.00019178,2]
[357179531,1743863447082,-404.96714042,0.00019178,2]
[357179532,1743863447091,-500.0,0.00019178,2]
[357179533,1743863447100,-512.13460567,0.00019178,2]
[357179534,1743863447110,-500.0,0.00019178,2]
[357179535,1743863447120,-197.78,0.00019178,2]
[357179536,1743863447129,-500.0,0.00019178,2]
[357179537,1743863447138,-512.96285298,0.00019178,2]
[357179538,1743863447147,-500.0,0.00019178,2]
[357179539,1743863447157,-165.38432846,0.00019178,2]
[357179540,1743863447166,-500.0,0.00019178,2]
[357179541,1743863447175,-500.0,0.00019178,2]
[357179542,1743863447185,-507.01493951,0.00019178,2]
[357179543,1743863447194,-500.0,0.00019178,2]
[357179544,1743863447203,-500.0,0.00019178,2]
[357179545,1743863447213,-511.26723763,0.00019178,2]
[357179546,1743863447222,-500.0,0.00019178,2]
[357179547,1743863447231,-500.0,0.00019178,2]
[357179548,1743863447240,-500.0,0.00019178,2]
[357179549,1743863447249,-500.0,0.00019178,2]
[357179550,1743863447259,-510.63393009,0.00019178,2]
[357179551,1743863447269,-500.0,0.00019178,2]
[357179552,1743863447278,-500.0,0.00019178,2]
[357179553,1743863447287,-500.0,0.00019178,2]
[357179554,1743863447296,-500.0,0.00019178,2]
[357179555,1743863447306,-500.0,0.00019178,2]
[357179556,1743863447316,-500.0,0.00019178,2]
[357179557,1743863447325,-508.63739232,0.00019178,2]
[357179558,1743863447335,-619.94464282,0.00019178,2]
[357179559,1743863447344,-500.0,0.00019178,2]
[357179560,1743863447354,-500.0,0.00019178,2]
[357179561,1743863447364,-541.96,0.00019178,2]
[357179562,1743863447374,-510.67591356,0.00019178,2]
[357179563,1743863447384,-500.0,0.00019178,2]
[357179564,1743863447394,-538.39144051,0.00019178,2]
[357179565,1743863447403,-5759.65,0.00019178,2]
[357179566,1743863447413,-5759.65,0.00019178,2]
[357179567,1743863447422,-5759.65,0.00019178,2]
[357179568,1743863447432,-2491.0,0.00019178,2]
[357179569,1743863447442,-5759.65,0.00019178,2]
[357179570,1743863447451,-5759.65,0.00019178,2]
[357179571,1743863447461,-5759.65,0.00019178,2]
[357179572,1743863447470,-5759.65,0.00019178,2]
[357179573,1743863447479,-5759.65,0.00019178,2]
[357179574,1743863447492,-5759.65,0.00019178,2]
[357179575,1743863447501,-500.0,0.00019178,2]
[357179576,1743863447510,-5759.65,0.00019178,2]
[357179577,1743863447520,-5759.65,0.00019178,2]
[357179578,1743863447529,-5759.65,0.00019178,2]
[357179579,1743863447538,-500.0,0.00019178,2]
[357179580,1743863447548,-5759.65,0.00019178,2]
[357179581,1743863447558,-5759.65,0.00019178,2]
[357179582,1743863447570,-5759.65,0.00019178,2]
[357179583,1743863447580,-5759.65,0.00019178,2]
[357179584,1743863447590,-503.25346691,0.00019178,2]
[357179585,1743863447600,-5759.65,0.00019178,2]
[357179586,1743863447610,-5759.65,0.00019178,2]
[357179587,1743863447620,-5759.65,0.00019178,2]
[357179588,1743863447629,-5759.65,0.00019178,2]
[357179589,1743863447639,-5759.65,0.00019178,2]
[357179590,1743863447650,-5759.65,0.00019178,2]
[357179591,1743863447660,-5759.65,0.00019178,2]
[357179592,1743863447669,-5759.71372786,0.00019178,2]
[357179593,1743863447679,-500.0,0.00019178,2]
[357179594,1743863447689,-500.0,0.00019178,2]
[357179595,1743863447698,-500.0,0.00019178,2]
[357179596,1743863447708,-500.0,0.00019178,2]
[357179597,1743863447718,-580.08,0.00019178,2]
[357179598,1743863447727,-500.0,0.00019178,2]
[357179599,1743863447737,-552.04459678,0.00019178,2]
[357179600,1743863447747,-500.0,0.00019178,2]
[357179601,1743863447756,-630.85601477,0.00019178,2]
[357179602,1743863447765,-500.0,0.00019178,2]
[357179603,1743863447775,-500.0,0.00019178,2]
[357179604,1743863447785,-500.0,0.00019178,2]
[357179605,1743863447794,-500.0,0.00019178,2]
[357179606,1743863447803,-500.0,0.00019178,2]
[357179607,1743863447813,-500.0,0.00019178,2]
[357179608,1743863447822,-500.0,0.00019178,2]
[357179609,1743863447831,-500.0,0.00019178,2]
[357179610,1743863447841,-569.39314679,0.00019178,2]
[357179611,1743863447850,-500.0,0.00019178,2]
[357179612,1743863447859,-500.0,0.00019178,2]
[357179613,1743863447869,-500.0,0.00019178,2]
[357179614,1743863447878,-500.0,0.00019178,2]
[357179615,1743863447888,-500.0,0.00019178,2]
[357179616,1743863447897,-500.0,0.00019178,2]
[357179617,1743863447906,-500.0,0.00019178,2]
[357179618,1743863447915,-500.0,0.00019178,2]
[357179619,1743863447925,-500.0,0.00019178,2]
[357179620,1743863447934,-502.17775866,0.00019178,2]
[357179621,1743863447943,-500.0,0.00019178,2]
[357179622,1743863447952,-500.0,0.00019178,2]
[357179623,1743863447962,-500.0,0.00019178,2]
[357179624,1743863447971,-500.0,0.00019178,2]
[357179625,1743863447980,-500.0,0.00019178,2]
[357179626,1743863447989,-500.0,0.00019178,2]
[357179627,1743863447999,-500.0,0.00019178,2]